fUSD/lending_fUSD_20250521
["ID","MTS","AMOUNT","RATE_DAILY","PERIOD"]
[361814374,1747823513207,-420.0,0.00033972,5]
[361814375,1747823513220,-492.73,0.00033972,5]
[361814376,1747823513233,-2994.99,0.00033972,5]
[361814377,1747823513246,-2847.74,0.00033972,5]
[361814378,1747823513258,-845.16,0.00033972,5]
[361814379,1747823513270,-458.47753072,0.00033972,5]
[361814380,1747823513283,-908.75,0.00033972,5]
[361814381,1747823513297,-7033.02,0.00033972,5]
[361814382,1747823513310,-420.0,0.00033972,5]
[361814383,1747823513323,-20631.06,0.00033972,5]
[361814384,1747823513336,-420.0,0.00033972,5]
[361814385,1747823513348,-1653.01,0.00033972,5]
[361814386,1747823513362,-420.0,0.00033972,5]
[361814387,1747823513378,-420.0,0.00033972,5]
[361814388,1747823513392,-440.6,0.00033972,5]
[361814389,1747823513404,-480.69,0.00033972,5]
[361814390,1747823513418,-420.0,0.00033972,5]
[361814391,1747823513431,-1811.64,0.00033972,5]
[361814392,1747823513443,-420.0,0.00033972,5]
[361814393,1747823513456,-1620.28,0.00033972,5]
[361814394,1747823513469,-1675.59,0.00033972,5]
[361814395,1747823513482,-1341.01,0.00033972,5]
[361814396,1747823513494,-2039.96,0.00033972,5]
[361814397,1747823513507,-659.87,0.00033972,5]
[361814398,1747823513520,-1650.39,0.00033972,5]
[361814399,1747823513533,-2331.07,0.00033972,5]
[361814400,1747823513545,-1130.47,0.00033972,5]
[361814401,1747823513558,-8529.77,0.00033972,5]
[361814402,1747823513571,-1170.52,0.00033972,5]
[361814403,1747823513585,-433.75600182,0.00033972,5]
[361814404,1747823513598,-1019.14,0.00033972,5]
[361814405,1747823513612,-13852.49,0.00033972,5]
[361814406,1747823513625,-594.46,0.00033972,5]
[361814407,1747823513640,-420.0,0.00033972,5]
[361814408,1747823513653,-420.0,0.00033972,5]
[361814409,1747823513667,-528.88,0.00033972,5]
[361814410,1747823513680,-420.0,0.00033972,5]
[361814411,1747823513693,-729.81,0.00033972,5]
[361814412,1747823513707,-6448.31,0.00033972,5]
[361814413,1747823513720,-1260.39,0.00033972,5]
[361814414,1747823513733,-157.265004,0.00033972,5]
[361814415,1747823513746,-4031.81,0.00033972,5]
[361814416,1747823513759,-1826.19,0.00033972,5]
[361814417,1747823513772,-15980.3,0.00033972,2]
[361814418,1747823513786,-569.82,0.00033972,5]
[361814419,1747823513799,-1991.55,0.00033972,5]
[361814420,1747823513813,-420.0,0.00033972,5]
[361814421,1747823513826,-420.0,0.00033972,5]
[361814422,1747823513839,-711.84,0.00033972,5]
[361814423,1747823513852,-1316.77,0.00033972,5]
[361814424,1747823513865,-1559.3,0.00033972,5]
[361814425,1747823513878,-932.88,0.00033972,5]
[361814426,1747823513890,-213.67086754,0.00033972,5]
[361814427,1747823513903,-1828.91,0.00033972,5]
[361814428,1747823513917,-1672.61,0.00033972,5]
[361814429,1747823513931,-420.0,0.00033972,5]
[361814430,1747823513944,-420.0,0.00033972,5]
[361814431,1747823513958,-6643.48,0.00033972,5]
[361814432,1747823513971,-420.0,0.00033972,5]
[361814433,1747823513984,-5987.12,0.00033972,5]
[361814434,1747823513997,-420.0,0.00033972,5]
[361814435,1747823514010,-4970.74,0.00033972,5]
[361814436,1747823514023,-420.0,0.00033972,5]
[361814437,1747823514035,-420.0,0.00033972,5]
[361814438,1747823514048,-908.99,0.00033972,5]
[361814439,1747823514061,-400.0,0.00033972,5]
[361814440,1747823514073,-1754.62,0.00033972,5]
[361814441,1747823514086,-636.17,0.00033972,5]
[361814442,1747823514099,-907.69,0.00033972,5]
[361814443,1747823514111,-420.0,0.00033972,5]
[361814444,1747823514124,-434.27,0.00033972,5]
[361814445,1747823514135,-420.0,0.00033972,5]
[361814446,1747823514148,-14282.24,0.00033972,5]
[361814447,1747823514161,-420.0,0.00033972,5]
[361814448,1747823514175,-1727.02,0.00033972,5]
[361814449,1747823514188,-2354.7,0.00033972,5]
[361814450,1747823514203,-2934.17,0.00033972,5]
[361814451,1747823514216,-420.0,0.00033972,5]
[361814452,1747823514229,-2098.09,0.00033972,5]
[361814453,1747823514242,-2370.12,0.00033972,5]
[361814454,1747823514257,-1608.41,0.00033972,5]
[361814455,1747823514270,-635.77,0.00033972,5]
[361814456,1747823514283,-2448.57,0.00033972,5]
[361814457,1747823514296,-565.39,0.00033972,5]
[361814458,1747823514308,-420.0,0.00033972,5]
[361814459,1747823514321,-400.0,0.00033972,5]
[361814460,1747823514334,-832.67,0.00033972,5]
[361814461,1747823514348,-2132.27,0.00033972,5]
[361814462,1747823514362,-420.0,0.00033972,5]
[361814463,1747823514376,-1444.81,0.00033972,5]
[361814464,1747823514390,-1244.04,0.00033972,5]
[361814465,1747823514403,-674.57,0.00033972,5]
[361814466,1747823514416,-14461.5,0.00033972,5]
[361814467,1747823514429,-4167.33,0.00033972,5]
[361814468,1747823514443,-5215.67,0.00033972,5]
[361814469,1747823514456,-888.13,0.00033972,5]
[361814470,1747823514469,-420.0,0.00033972,5]
[361814471,1747823514482,-207938.64,0.00033972,5]
[361814472,1747823514495,-548.09,0.00033972,5]
[361814473,1747823514508,-420.0,0.00033972,5]
[361814474,1747823514521,-420.0,0.00033972,5]
[361814475,1747823514534,-2319.06,0.00033972,5]
[361814476,1747823514547,-3257.11,0.00033972,5]
[361814477,1747823514561,-5582.21,0.00033972,5]
[361814478,1747823514573,-1507.21,0.00033972,5]
[361814479,1747823514586,-420.0,0.00033972,5]
[361814480,1747823514599,-1493.55,0.00033972,5]
[361814481,1747823514612,-1088.44,0.00033972,5]
[361814482,1747823514624,-2557.88,0.00033972,5]
[361814483,1747823514636,-697.67,0.00033972,5]
[361814484,1747823514650,-2873.2,0.00033972,5]
[361814485,1747823514663,-420.0,0.00033972,5]
[361814486,1747823514675,-420.0,0.00033972,5]
[361814487,1747823514688,-480.01,0.00033972,5]
[361814488,1747823514701,-2282.96,0.00033972,5]
[361814489,1747823514714,-1657.0,0.00033972,5]
[361814490,1747823514727,-420.0,0.00033972,5]
[361814491,1747823514740,-799.92,0.00033972,5]
[361814492,1747823514766,-18765.11,0.00033972,5]
[361814493,1747823514779,-1063.9,0.00033972,5]
[361814494,1747823514793,-420.0,0.00033972,5]
[361814495,1747823514806,-673.17,0.00033972,5]
[361814496,1747823514819,-420.0,0.00033972,5]
[361814497,1747823514833,-3847.23,0.00033972,5]
[361814498,1747823514846,-420.0,0.00033972,5]
[361814499,1747823514859,-549.05,0.00033972,5]
[361814500,1747823514872,-474.32,0.00033972,5]
[361814501,1747823514886,-2564.95,0.00033972,5]
[361814502,1747823514900,-420.0,0.00033972,5]
[361814503,1747823514913,-420.0,0.00033972,5]
[361814504,1747823514927,-1818.07,0.00033972,5]
[361814505,1747823514941,-42262.48,0.00033972,5]
[361814506,1747823514953,-1554.78,0.00033972,5]
[361814507,1747823514966,-420.0,0.00033972,5]
[361814508,1747823514979,-1719.68,0.00033972,5]
[361814509,1747823514993,-4510.74,0.00033972,5]
[361814510,1747823515006,-516.93,0.00033972,5]
[361814511,1747823515020,-420.0,0.00033972,5]
[361814512,1747823515033,-3137.08,0.00033972,5]
[361814513,1747823515047,-506.82,0.00033972,5]
[361814514,1747823515060,-9532.22,0.00033972,5]
[361814515,1747823515073,-420.0,0.00033972,5]
[361814516,1747823515087,-1001.23,0.00033972,5]
[361814517,1747823515100,-1349.86,0.00033972,5]
[361814518,1747823515115,-874.84,0.00033972,5]
[361814519,1747823515128,-2359.68,0.00033972,5]
[361814520,1747823515141,-627.61,0.00033972,5]
[361814521,1747823515155,-670.93,0.00033972,5]
[361814522,1747823515167,-420.0,0.00033972,5]
[361814523,1747823515180,-1909.1,0.00033972,5]
[361814524,1747823515193,-3667.82,0.00033972,5]
[361814525,1747823515206,-3774.82,0.00033972,5]
[361814526,1747823515221,-713.73,0.00033972,5]
[361814527,1747823515235,-420.0,0.00033972,5]
[361814528,1747823515249,-1201.04,0.00033972,5]
[361814529,1747823515262,-420.0,0.00033972,5]
[361814530,1747823515276,-150.0,0.00033973,5]
[361814531,1747823515289,-274.65450403,0.00033993,15]
[361814532,1747823515302,-3396.23563903,0.00034009,2]
[361814533,1747823515316,-1000.0,0.00034021,4]
[361814534,1747823515328,-509.3676879,0.00034021,5]
[361814535,1747823515341,-319.44516173,0.00034021,5]
[361814536,1747823515354,-507.95662155,0.00034021,5]
[361814537,1747823515371,-1000.0,0.00034021,5]
[361814538,1747823515384,-1004.68355529,0.00034021,5]
[361814539,1747823515397,-513.8690095,0.00034021,5]
[361814540,1747823515413,-1000.0,0.00034021,5]
[361814541,1747823515428,-553.13846096,0.00034021,5]
[361814542,1747823515442,-1000.0,0.00034021,5]
[361814543,1747823515455,-853.85614654,0.00034146,2]
[361814544,1747823515468,-274.65450403,0.00034146,15]
[361814545,1747823515483,-150.0,0.00034161,30]
[361814546,1747823515496,-150.0,0.00034161,30]
[361814547,1747823515510,-150.0,0.00034161,30]
[361814548,1747823515522,-1972.83855111,0.00034161,30]
[361814549,1747823515536,-878.19080263,0.00034161,30]
[361814550,1747823515549,-1354.45024999,0.00034161,30]
[361814551,1747823515561,-150.0,0.00034161,30]
[361814552,1747823515574,-10159.22002191,0.00034161,30]
[361814553,1747823515588,-150.0,0.00034245,2]
[361814554,1747823515601,-420.0,0.00034246,5]
[361814555,1747823515613,-420.0,0.00034246,5]
[361814556,1747823515627,-461.98829718,0.00034246,5]
[361814557,1747823515639,-420.0,0.00034246,5]
[361814558,1747823515652,-420.0,0.00034246,5]
[361814559,1747823515665,-435.0446,0.00034246,5]
[361814560,1747823515678,-420.0,0.00034246,5]
[361814561,1747823515692,-420.0,0.00034246,5]
[361814562,1747823515706,-278.71545539,0.00034246,5]
[361814563,1747823515719,-420.0,0.00034246,5]
[361814564,1747823515732,-420.0,0.00034246,5]
[361814565,1747823515744,-420.0,0.00034246,5]
[361814566,1747823515758,-868.63,0.00034246,5]
[361814567,1747823515771,-455.97667447,0.00034246,5]
[361814568,1747823515785,-420.0,0.00034246,5]
[361814569,1747823515798,-771.73,0.00034246,5]
[361814570,1747823515812,-1206.97,0.00034246,5]
[361814571,1747823515825,-420.0,0.00034246,5]
[361814572,1747823515839,-420.0,0.00034246,5]
[361814573,1747823515853,-1764.15,0.00034246,5]
[361814574,1747823515867,-550.16,0.00034246,5]
[361814575,1747823515880,-497.1,0.00034246,5]
[361814576,1747823515893,-420.0,0.00034246,5]
[361814577,1747823515907,-420.0,0.00034246,5]
[361814578,1747823515921,-420.0,0.00034246,5]
[361814579,1747823515935,-965.56,0.00034246,5]
[361814580,1747823515949,-562.65,0.00034246,5]
[361814581,1747823515962,-616.51,0.00034246,5]
[361814582,1747823515975,-420.0,0.00034246,5]
[361814583,1747823515989,-420.0,0.00034246,5]
[361814584,1747823516001,-611.48,0.00034246,5]
[361814585,1747823516015,-420.0,0.00034246,5]
[361814586,1747823516028,-420.0,0.00034246,5]
[361814587,1747823516041,-420.0,0.00034246,5]
[361814588,1747823516054,-566.4074961,0.00034246,5]
[361814589,1747823516068,-420.0,0.00034246,5]
[361814590,1747823516082,-499.33,0.00034246,5]
[361814591,1747823516094,-506.54,0.00034246,5]
[361814592,1747823516108,-420.0,0.00034246,5]
[361814593,1747823516122,-911.46,0.00034246,5]
[361814594,1747823516135,-1153.75,0.00034246,5]
[361814595,1747823516148,-420.0,0.00034246,5]
[361814596,1747823516161,-420.0,0.00034246,5]
[361814597,1747823516175,-420.0,0.00034246,5]
[361814598,1747823516188,-420.0,0.00034246,5]
[361814599,1747823516203,-730.43,0.00034246,5]
[361814600,1747823516218,-420.0,0.00034246,5]
[361814601,1747823516232,-420.0,0.00034246,5]
[361814602,1747823516246,-420.0,0.00034246,5]
[361814603,1747823516259,-1697.54,0.00034246,5]
[361814604,1747823516273,-579.77,0.00034246,5]
[361814605,1747823516286,-204.3,0.00034246,5]
[361814606,1747823516299,-420.0,0.00034246,5]
[361814607,1747823516313,-420.0,0.00034246,5]
[361814608,1747823516326,-420.0,0.00034246,5]
[361814609,1747823516340,-420.0,0.00034246,5]
[361814610,1747823516353,-570.61,0.00034246,5]
[361814611,1747823516369,-420.0,0.00034246,5]
[361814612,1747823516397,-420.0,0.00034246,5]
[361814613,1747823516416,-788.01,0.00034246,5]
[361814614,1747823516433,-420.0,0.00034246,5]
[361814615,1747823516447,-1490.72,0.00034246,5]
[361814616,1747823516463,-420.0,0.00034246,5]
[361814617,1747823516479,-917.84,0.00034246,5]
[361814618,1747823516494,-642.67,0.00034246,5]
[361814619,1747823516509,-420.0,0.00034246,5]
[361814620,1747823516526,-807.74,0.00034246,5]
[361814621,1747823516540,-901.58,0.00034246,5]
[361814622,1747823516556,-420.0,0.00034246,5]
[361814623,1747823517322,-3015.53,0.00034246,5]
[361814624,1747823517358,-420.0,0.00034246,5]
[361814625,1747823517373,-420.0,0.00034246,5]
[361814626,1747823517383,-413.05344055,0.00034246,5]
[361814627,1747823517393,-460.17,0.00034246,5]
[361814628,1747823517403,-642.11,0.00034246,5]
[361814629,1747823517413,-420.0,0.00034246,5]
[361814630,1747823517423,-1185.77,0.00034246,5]
[361814631,1747823517432,-973.19,0.00034246,5]
[361814632,1747823517448,-497.57,0.00034246,5]
[361814633,1747823517459,-420.0,0.00034246,5]
[361814634,1747823517471,-1098.15,0.00034246,5]
[361814635,1747823517481,-385.58354334,0.00034246,5]
[361814636,1747823517490,-420.0,0.00034246,5]
[361814637,1747823517500,-685.16,0.00034246,5]
[361814638,1747823517511,-420.0,0.00034246,5]
[361814639,1747823517522,-420.0,0.00034246,5]
[361814640,1747823517533,-1485.21,0.00034246,5]
[361814641,1747823517543,-448.34,0.00034246,5]
[361814642,1747823517553,-818.23,0.00034246,5]
[361814643,1747823517564,-443.81,0.00034246,5]
[361814644,1747823517574,-1526.88,0.00034246,5]
[361814645,1747823517584,-420.0,0.00034246,5]
[361814646,1747823517594,-420.0,0.00034246,5]
[361814647,1747823517605,-470.16,0.00034246,5]
[361814648,1747823517615,-443.58,0.00034246,5]
[361814649,1747823517625,-669.64,0.00034246,5]
[361814650,1747823517635,-420.0,0.00034246,5]
[361814651,1747823517645,-420.0,0.00034246,5]
[361814652,1747823517655,-420.0,0.00034246,5]
[361814653,1747823517665,-937.45,0.00034246,5]
[361814654,1747823517675,-2266.87,0.00034246,5]
[361814655,1747823517685,-420.0,0.00034246,5]
[361814656,1747823517695,-442.68,0.00034246,5]
[361814657,1747823517705,-420.0,0.00034246,5]
[361814658,1747823517715,-420.0,0.00034246,5]
[361814659,1747823517726,-420.0,0.00034246,5]
[361814660,1747823517736,-597.09,0.00034246,5]
[361814661,1747823517747,-655.53,0.00034246,5]
[361814662,1747823517758,-420.0,0.00034246,5]
[361814663,1747823517768,-636.42,0.00034246,5]
[361814664,1747823517780,-420.0,0.00034246,5]
[361814665,1747823517790,-420.0,0.00034246,5]
[361814666,1747823517800,-420.0,0.00034246,5]
[361814667,1747823517810,-838.78,0.00034246,5]
[361814668,1747823517820,-420.0,0.00034246,5]
[361814669,1747823517830,-493.93,0.00034246,5]
[361814670,1747823517840,-420.0,0.00034246,5]
[361814671,1747823517851,-420.0,0.00034246,5]
[361814672,1747823517861,-560.23,0.00034246,5]
[361814673,1747823517870,-420.0,0.00034246,5]
[361814674,1747823517891,-1078.18,0.00034246,5]
[361814675,1747823517905,-420.0,0.00034246,5]
[361814676,1747823517916,-420.0,0.00034246,5]
[361814677,1747823517927,-2322.3,0.00034246,5]
[361814678,1747823517939,-420.0,0.00034246,5]
[361814679,1747823517951,-420.0,0.00034246,5]
[361814680,1747823517963,-1065.69,0.00034246,5]
[361814681,1747823517975,-420.0,0.00034246,5]
[361814682,1747823517987,-1253.93,0.00034246,5]
[361814683,1747823517999,-1274.75,0.00034246,5]
[361814684,1747823518012,-463.91,0.00034246,5]
[361814685,1747823518023,-721.97,0.00034246,5]
[361814686,1747823518037,-420.0,0.00034246,5]
[361814687,1747823518047,-821.62,0.00034246,5]
[361814688,1747823518060,-420.0,0.00034246,5]
[361814689,1747823518071,-422.38,0.00034246,5]
[361814690,1747823518083,-1544.61,0.00034246,5]
[361814691,1747823518096,-550.85,0.00034246,5]
[361814692,1747823518109,-420.0,0.00034246,5]
[361814693,1747823518119,-420.0,0.00034246,5]
[361814694,1747823518129,-420.0,0.00034246,5]
[361814695,1747823518140,-499.46,0.00034246,5]
[361814696,1747823518151,-420.0,0.00034246,5]
[361814697,1747823518162,-678.04,0.00034246,5]
[361814698,1747823518174,-616.6,0.00034246,5]
[361814699,1747823518185,-1170.85,0.00034246,5]
[361814700,1747823518196,-546.75,0.00034246,5]
[361814701,1747823518206,-420.0,0.00034246,5]
[361814702,1747823518217,-420.0,0.00034246,5]
[361814703,1747823518228,-420.0,0.00034246,5]
[361814704,1747823518239,-1581.01,0.00034246,5]
[361814705,1747823518250,-420.0,0.00034246,5]
[361814706,1747823518260,-2020.82,0.00034246,5]
[361814707,1747823518271,-1587.36,0.00034246,5]
[361814708,1747823518283,-440.31,0.00034246,5]
[361814709,1747823518294,-528.73,0.00034246,5]
[361814710,1747823518304,-420.0,0.00034246,5]
[361814711,1747823518321,-530.24,0.00034246,5]
[361814712,1747823518333,-835.65,0.00034246,5]
[361814713,1747823518344,-420.0,0.00034246,5]
[361814714,1747823518355,-632.49,0.00034246,5]
[361814715,1747823518370,-420.0,0.00034246,5]
[361814716,1747823518381,-712.53,0.00034246,5]
[361814717,1747823518392,-420.0,0.00034246,5]
[361814718,1747823518405,-420.0,0.00034246,5]
[361814719,1747823518417,-905.81,0.00034246,5]
[361814720,1747823518427,-420.0,0.00034246,5]
[361814721,1747823518440,-1500.35,0.00034246,5]
[361814722,1747823518451,-913.23,0.00034246,5]
[361814723,1747823518463,-420.0,0.00034246,5]
[361814724,1747823518474,-891.23,0.00034246,5]
[361814725,1747823518488,-264.52061501,0.00034246,5]
[361814726,1747823518498,-420.0,0.00034246,5]
[361814727,1747823518509,-420.0,0.00034246,5]
[361814728,1747823518520,-329.92638823,0.00034246,5]
[361814729,1747823518531,-420.0,0.00034246,5]
[361814730,1747823518542,-420.0,0.00034246,5]
[361814731,1747823518554,-793.59,0.00034246,5]
[361814732,1747823518564,-420.0,0.00034246,5]
[361814733,1747823518576,-532.78,0.00034246,5]
[361814734,1747823518587,-420.0,0.00034246,5]
[361814735,1747823518599,-420.0,0.00034246,5]
[361814736,1747823518612,-420.0,0.00034246,5]
[361814737,1747823518623,-154.70509587,0.00034246,5]
[361814738,1747823518633,-716.67,0.00034246,5]
[361814739,1747823518644,-431.22,0.00034246,5]
[361814740,1747823518655,-3321.89,0.00034246,5]
[361814741,1747823518666,-655.87,0.00034246,5]
[361814742,1747823518677,-420.0,0.00034246,5]
[361814743,1747823518688,-420.0,0.00034246,5]
[361814744,1747823518699,-464.92,0.00034246,5]
[361814745,1747823518710,-420.0,0.00034246,5]
[361814746,1747823518721,-752.46,0.00034246,5]
[361814747,1747823518732,-420.0,0.00034246,5]
[361814748,1747823518748,-420.0,0.00034246,5]
[361814749,1747823518760,-1164.32,0.00034246,5]
[361814750,1747823518771,-447.46,0.00034246,5]
[361814751,1747823518782,-420.0,0.00034246,5]
[361814752,1747823518794,-420.0,0.00034246,5]
[361814753,1747823518805,-1182.51,0.00034246,5]
[361814754,1747823518818,-970.46,0.00034246,5]
[361814755,1747823518829,-2566.8,0.00034246,3]
[361814756,1747823518840,-420.0,0.00034246,5]
[361814757,1747823518851,-986.1,0.00034246,5]
[361814758,1747823518862,-3544.76,0.00034246,5]
[361814759,1747823518873,-528.46,0.00034246,5]
[361814760,1747823518884,-420.0,0.00034246,5]
[361814761,1747823518895,-420.0,0.00034246,5]
[361814762,1747823518906,-420.0,0.00034246,5]
[361814763,1747823518919,-1116.24,0.00034246,5]
[361814764,1747823518929,-607.2,0.00034246,5]
[361814765,1747823518941,-498.41,0.00034246,5]
[361814766,1747823518953,-511.54,0.00034246,5]
[361814767,1747823518964,-420.0,0.00034246,5]
[361814768,1747823518975,-294.03682716,0.00034246,5]
[361814769,1747823518986,-1446.26,0.00034246,5]
[361814770,1747823518997,-420.0,0.00034246,5]
[361814771,1747823519008,-635.53,0.00034246,5]
[361814772,1747823519019,-420.0,0.00034246,5]
[361814773,1747823519029,-420.0,0.00034246,5]
[361814774,1747823519040,-420.0,0.00034246,5]
[361814775,1747823519051,-602.05,0.00034246,5]
[361814776,1747823519063,-420.0,0.00034246,5]
[361814777,1747823519073,-420.0,0.00034246,5]
[361814778,1747823519085,-3171.93,0.00034246,5]
[361814779,1747823519096,-420.0,0.00034246,5]
[361814780,1747823519107,-420.0,0.00034246,5]
[361814781,1747823519117,-672.06,0.00034246,5]
[361814782,1747823519129,-501.87,0.00034246,5]
[361814783,1747823519140,-1136.92,0.00034246,5]
[361814784,1747823519150,-420.0,0.00034246,5]
[361814785,1747823519162,-960.17,0.00034246,5]
[361814786,1747823519177,-216.81347905,0.00034246,5]
[361814787,1747823519188,-420.0,0.00034246,5]
[361814788,1747823519198,-1498.01,0.00034246,5]
[361814789,1747823519209,-420.0,0.00034246,5]
[361814790,1747823519219,-420.0,0.00034246,5]
[361814791,1747823519230,-420.0,0.00034246,5]
[361814792,1747823519240,-489.93,0.00034246,5]
[361814793,1747823519251,-420.0,0.00034246,5]
[361814794,1747823519262,-420.0,0.00034246,5]
[361814795,1747823519273,-420.0,0.00034246,5]
[361814796,1747823519284,-1634.56,0.00034246,5]
[361814797,1747823519294,-420.0,0.00034246,5]
[361814798,1747823519304,-1181.55,0.00034246,5]
[361814799,1747823519315,-420.0,0.00034246,5]
[361814800,1747823519326,-420.0,0.00034246,5]
[361814801,1747823519336,-420.0,0.00034246,5]
[361814802,1747823519347,-420.0,0.00034246,5]
[361814803,1747823519359,-731.06,0.00034246,5]
[361814804,1747823519375,-665.75,0.00034246,5]
[361814805,1747823519386,-420.0,0.00034246,5]
[361814806,1747823519398,-420.0,0.00034246,5]
[361814807,1747823519412,-420.0,0.00034246,5]
[361814808,1747823519422,-1010.87,0.00034246,5]
[361814809,1747823519435,-725.49,0.00034246,5]
[361814810,1747823519448,-1218.91,0.00034246,5]
[361814811,1747823519459,-1168.31,0.00034246,5]
[361814812,1747823519470,-1264.38,0.00034246,5]
[361814813,1747823519482,-420.0,0.00034246,5]
[361814814,1747823519493,-420.0,0.00034246,2]
[361814815,1747823519504,-420.0,0.00034246,5]
[361814816,1747823519515,-584.07,0.00034246,5]
[361814817,1747823519526,-3033.08,0.00034246,5]
[361814818,1747823519537,-420.0,0.00034246,5]
[361814819,1747823519547,-740.34,0.00034246,5]
[361814820,1747823519558,-420.0,0.00034246,5]
[361814821,1747823519568,-420.0,0.00034246,5]
[361814822,1747823519579,-1236.73,0.00034246,5]
[361814823,1747823519589,-420.0,0.00034246,5]
[361814824,1747823519600,-420.0,0.00034246,5]
[361814825,1747823519621,-718.57,0.00034246,5]
[361814826,1747823519634,-420.0,0.00034246,2]
[361814827,1747823519645,-180.0,0.00034246,5]
[361814828,1747823519656,-2646.97,0.00034246,5]
[361814829,1747823519667,-420.0,0.00034246,5]
[361814830,1747823519678,-420.0,0.00034246,5]
[361814831,1747823519689,-420.0,0.00034246,5]
[361814832,1747823519700,-202.41369996,0.00034246,5]
[361814833,1747823519711,-3655.51,0.00034246,5]
[361814834,1747823519723,-420.0,0.00034246,5]
[361814835,1747823519734,-1194.67,0.00034246,5]
[361814836,1747823519746,-637.39,0.00034246,5]
[361814837,1747823519757,-2368.39,0.00034246,5]
[361814838,1747823519768,-932.97,0.00034246,5]
[361814839,1747823519779,-788.04,0.00034246,5]
[361814840,1747823519790,-475.79,0.00034246,5]
[361814841,1747823519802,-469.81,0.00034246,5]
[361814842,1747823519813,-420.0,0.00034246,5]
[361814843,1747823519825,-1192.06,0.00034246,5]
[361814844,1747823519836,-2693.72,0.00034246,5]
[361814845,1747823519847,-1158.88,0.00034246,5]
[361814846,1747823519858,-2741.78,0.00034246,5]
[361814847,1747823519869,-1351.52,0.00034246,5]
[361814848,1747823519881,-420.0,0.00034246,5]
[361814849,1747823519892,-1167.31,0.00034246,5]
[361814850,1747823519904,-420.0,0.00034246,5]
[361814851,1747823519914,-255.06131651,0.00034246,5]
[361814852,1747823519926,-506.87,0.00034246,5]
[361814853,1747823519937,-1450.92,0.00034246,5]
[361814854,1747823519948,-664.46,0.00034246,5]
[361814855,1747823519959,-2096.4,0.00034246,5]
[361814856,1747823519970,-1675.88,0.00034246,5]
[361814857,1747823519982,-783.68,0.00034246,5]
[361814858,1747823519992,-421.11,0.00034246,5]
[361814859,1747823520004,-420.0,0.00034246,5]
[361814860,1747823520015,-1330.16,0.00034246,5]
[361814861,1747823520026,-655.43,0.00034246,5]
[361814862,1747823520043,-420.0,0.00034246,5]
[361814863,1747823520493,-628.75,0.00034246,5]
[361814864,1747823520520,-470.23,0.00034246,5]
[361814865,1747823520544,-789.43,0.00034246,5]
[361814866,1747823520554,-2066.32,0.00034246,5]
[361814867,1747823520564,-543.38,0.00034246,5]
[361814868,1747823520574,-1884.88,0.00034246,5]
[361814869,1747823520584,-420.0,0.00034246,5]
[361814870,1747823520595,-443.39,0.00034246,5]
[361814871,1747823520605,-814.52,0.00034246,5]
[361814872,1747823520616,-420.0,0.00034246,5]
[361814873,1747823520627,-468.75,0.00034246,5]